bitfinex/quotes_SOLUSD_20240920
["timestamp","ask_amount","ask_price","bid_price","bid_amount"]
[1726827624217,0.2555117,150.8,150.74,39.0909]
[1726827624522,6.8868117,150.8,150.76,6.6326]
[1726827624900,6.8868117,150.8,150.75,6.6334]
[1726827625823,6.6318,150.79,150.75,6.6334]
[1726827626006,6.75759,150.78,150.74,45.7246]
[1726827633408,6.6336,150.75,150.71,23.2224]
[1726827634221,6.6339,150.74,150.71,16.5873]
[1726827634914,6.6337,150.75,150.71,23.2224]
[1726827638128,6.75869,150.76,150.72,6.6348]
[1726827638830,0.25098,150.77,150.66,6.3813]
[1726827638831,24.153354,150.74,150.66,6.3813]
[1726827639028,6.6357,150.7,150.65,6.8933117]
[1726827639211,6.6363,150.69,150.65,6.8933117]
[1726827650138,6.6358,150.7,150.66,7.96462491]
[1726827650343,6.6361,150.69,150.65,6.8932117]
[1726827651236,6.6357,150.7,150.66,6.6373]
[1726827656442,6.6355,150.71,150.65,0.2555117]
[1726827656649,6.76099,150.71,150.67,6.6369]
[1726827658340,6.6355,150.71,150.68,6.6365]
[1726827658658,6.6344,150.73,150.69,6.6359]
[1726827659655,6.6343,150.73,150.69,6.636]
[1726827662139,6.634,150.74,150.7,6.6355]
[1726827662352,42.87515652,150.79,150.7,16.5891]
[1726827662539,6.6333,150.76,150.72,6.6345]
[1726827663354,6.6333,150.76,150.7,16.5891]
[1726827663355,6.6335,150.75,150.71,6.6351]
[1726827663947,35.9407,150.79,150.67,38.2515]
[1726827663948,6.6356,150.71,150.67,38.2515]
[1726827664339,0.25098,150.76,150.67,38.2515]
[1726827664340,6.6357,150.7,150.67,16.5917]
[1726827664541,6.6353,150.71,150.67,23.2286]
[1726827664752,6.6357,150.7,150.67,23.2286]
[1726827667853,6.6354,150.71,150.67,23.2286]
[1726827668763,27.95071881,150.79,150.66,6.1421]
[1726827668946,6.6344,150.73,150.69,23.2261]
[1726827669849,6.6342,150.74,150.7,6.6356]
[1726827670461,6.6335,150.75,150.71,6.6349]
[1726827672888,6.6339,150.74,150.71,6.6349]
[1726827673762,6.6345,150.73,150.69,23.226]
[1726827673947,24.027864,150.71,150.68,15.9699]
[1726827674151,6.6361,150.69,150.66,6.1421]
[1726827674458,0.12549,150.74,150.66,6.1421]
[1726827674848,6.6349,150.72,150.68,6.6362]
[1726827676357,6.6344,150.73,150.69,6.636]
[1726827677658,0.25098,150.74,150.7,6.6356]
[1726827677984,6.6339,150.74,150.7,6.6356]
[1726827680160,23.776884,150.77,150.73,16.5856]
[1726827680459,16.8343117,150.8,150.73,16.5856]
[1726827680659,16.8343117,150.8,150.74,6.6336]
[1726827680660,6.6322,150.78,150.74,6.6336]
[1726827681274,6.6322,150.78,150.73,23.2198]
[1726827681476,6.6327,150.77,150.73,23.2198]
[1726827683557,6.6322,150.78,150.74,6.6338]
[1726827685675,0.2555117,150.8,150.75,32.7333]
[1726827685985,6.6317,150.79,150.75,32.7333]
[1726827686277,6.6323,150.78,150.75,32.7333]
[1726827686782,6.6319,150.79,150.75,39.3666]
[1726827691366,6.8869117,150.8,150.76,6.6329]
[1726827691868,0.2555117,150.8,150.77,6.6325]
[1726827692294,6.8869117,150.8,150.76,6.6329]
[1726827693483,0.2555117,150.8,150.76,6.6329]
[1726827693869,6.8868117,150.8,150.76,6.6329]
[1726827694100,6.8868117,150.8,150.76,6.633]
[1726827695401,6.8868117,150.8,150.75,39.3666]
[1726827697199,6.6317,150.79,150.75,39.3666]
[1726827699799,0.2555117,150.8,150.77,6.6324]
[1726827699987,0.2555117,150.8,150.75,32.7333]
[1726827700190,0.2555117,150.8,150.77,6.6325]
[1726827701294,0.2555117,150.8,150.78,6.632]
[1726827703585,0.2555117,150.8,150.77,16.5812]
[1726827703586,0.2555117,150.8,150.79,6.6317]
[1726827704480,0.2555117,150.8,150.79,7.9576689]
[1726827705385,0.2555117,150.8,150.79,35.7916414]
[1726827706781,0.2555117,150.8,150.79,22.2484]
[1726827709113,0.2555117,150.8,150.79,35.7916414]
[1726827709688,0.2555117,150.8,150.79,22.2484]
[1726827711292,0.2555117,150.8,150.79,35.7916414]
[1726827711705,0.2555117,150.8,150.79,112.9781054]
[1726827712098,0.2555117,150.8,150.79,113.1035954]
[1726827713508,0.2555117,150.85,150.84,23.2033]
[1726827724224,0.2555117,150.85,150.84,43.32879]
[1726827724406,0.2555117,150.85,150.84,65.80229706]
[1726827724604,0.2555117,150.85,150.84,89.83016106]
[1726827725219,0.2555117,150.89,150.88,23.1971]
[1726827725424,0.2555117,150.89,150.88,36.8658314]
[1726827725722,0.2555117,150.89,150.88,70.0047314]
[1726827726413,0.2555117,150.89,150.88,90.0047314]
[1726827727225,0.2555117,150.89,150.88,76.336]
[1726827728120,0.2555117,150.89,150.88,56.336]
[1726827728326,0.2555117,150.89,150.88,76.336]
[1726827731106,0.2555117,150.89,150.88,23.1971]
[1726827731306,0.2555117,150.89,150.85,16.572]
[1726827731829,6.8829117,150.89,150.85,23.201]
[1726827733808,0.2555117,150.89,150.82,16.5754]
[1726827734011,0.25098,150.88,150.82,16.5754]
[1726827734428,6.6282,150.87,150.83,6.6296]
[1726827734931,6.8832117,150.89,150.84,6.6294]
[1726827735118,6.8832117,150.89,150.85,6.629]
[1726827735521,0.2555117,150.89,150.85,6.629]
[1726827736430,0.2555117,150.89,150.86,6.6284]
[1726827737318,0.2555117,150.89,150.84,16.5735]
[1726827737319,6.8832117,150.89,150.85,6.6289]
[1726827737535,0.2555117,150.89,150.84,16.5735]
[1726827737911,6.8830117,150.89,150.84,16.5735]
[1726827738213,6.8830117,150.89,150.85,6.6289]
[1726827741644,6.8830117,150.89,150.84,16.5735]
[1726827741645,0.2555117,150.89,150.84,16.5735]
[1726827741814,0.2555117,150.89,150.86,16.5714]
[1726827742214,0.2555117,150.89,150.82,46.6932414]
[1726827743342,0.2555117,150.89,150.86,23.1999]
[1726827745737,6.8829117,150.89,150.85,6.629]
[1726827745909,0.2555117,150.89,150.83,23.204]
[1726827746312,6.6279,150.88,150.83,23.204]
[1726827747038,6.6279,150.88,150.84,6.6294]
[1726827747419,6.6283,150.87,150.83,23.2039]
[1726827747620,6.6279,150.88,150.84,6.6295]
[1726827748721,6.6279,150.88,150.83,16.5741]
[1726827748722,6.6282,150.87,150.83,23.2039]
[1726827749142,0.2555117,150.89,150.8,32.6492]
[1726827749143,0.25098,150.88,150.8,32.6492]
[1726827749315,23.902374,150.86,150.8,16.5773]
[1726827749516,6.6292,150.85,150.81,6.6305]
[1726827751416,13.1717,150.87,150.82,1.32581266]
[1726827751623,19.8001,150.87,150.83,6.6299]
[1726827752725,6.6284,150.87,150.83,6.6299]
[1726827753435,6.6287,150.86,150.82,23.2058]
[1726827754336,0.37647,150.88,150.79,16.5784]
[1726827754530,6.6298,150.84,150.81,6.6308]
[1726827754731,6.6305,150.82,150.76,39.1203]
[1726827755051,6.6305,150.82,150.78,6.6318]
[1726827755414,6.63,150.83,150.79,6.6317]
[1726827756051,6.6296,150.84,150.8,6.6312]
[1726827757531,6.6294,150.85,150.81,6.6308]
[1726827759832,6.6288,150.86,150.82,6.6303]
[1726827760236,6.6291,150.85,150.81,6.6307]
[1726827760844,6.63,150.83,150.8,16.5779]
[1726827761450,6.6296,150.84,150.8,23.2091]
[1726827766258,6.6292,150.85,150.81,6.6307]
[1726827767061,6.6287,150.86,150.82,6.6303]
[1726827767564,6.8831117,150.89,150.85,6.6289]
[1726827767756,6.6281,150.88,150.84,23.203]
[1726827768550,6.6283,150.87,150.84,16.5737]
[1726827769060,6.6283,150.87,150.83,6.6298]
[1726827769776,0.25098,150.88,150.81,16.5762]
[1726827770349,6.6287,150.86,150.83,6.6299]
[1726827770871,6.6283,150.87,150.83,6.6299]
[1726827774252,6.628,150.88,150.84,6.6293]
[1726827779070,6.6283,150.87,150.83,23.2041]
[1726827779877,6.6283,150.87,150.84,6.6295]
[1726827780576,6.6283,150.87,150.83,23.2042]
[1726827783174,6.6287,150.86,150.83,23.2042]
[1726827783473,6.6283,150.87,150.83,23.2042]
[1726827783861,6.6283,150.87,150.84,6.6295]
[1726827784056,6.6283,150.87,150.83,23.2042]
[1726827790976,6.6283,150.87,150.84,6.6294]
[1726827792079,6.6287,150.86,150.83,23.2042]
[1726827792583,6.6287,150.86,150.83,16.5744]
[1726827793085,6.6287,150.86,150.83,23.2043]
[1726827793267,6.6283,150.87,150.83,23.2043]
[1726827793865,0.2555117,150.89,150.87,6.6282]
[1726827794059,0.2555117,150.89,150.85,16.5723]
[1726827794569,6.8829117,150.89,150.85,23.2012]
[1726827797084,6.6279,150.88,150.85,16.5723]
[1726827802294,6.8830117,150.89,150.85,23.2013]
[1726827806792,6.6278,150.88,150.85,23.2013]
[1726827809598,6.8830117,150.89,150.85,23.2013]
[1726827813389,0.2555117,150.89,150.86,6.6286]
[1726827813998,0.2555117,150.89,150.87,6.6282]
[1726827816483,0.2555117,150.89,150.86,6.6285]
[1726827818175,0.2555117,150.89,150.82,23.0358]
[1726827818597,6.628,150.88,150.84,6.6292]
[1726827819595,6.628,150.88,150.84,23.2029]
[1726827820508,6.8831117,150.89,150.85,6.629]
[1726827821685,0.2555117,150.89,150.86,6.6285]
[1726827822407,0.2555117,150.89,150.87,6.6282]
[1726827823501,0.2555117,150.89,150.86,23.1999]
[1726827825584,0.2555117,150.89,150.87,6.6281]
[1726827828496,0.2555117,150.89,150.86,23.1999]
[1726827833397,6.8831117,150.89,150.86,16.5715]
[1726827833595,6.8831117,150.89,150.85,6.629]
[1726827840006,6.6296,150.84,150.8,23.2086]
[1726827845835,21.45877448,150.89,150.84,6.6294]
[1726827845995,6.6282,150.87,150.82,16.5758]
[1726827846315,6.6282,150.87,150.83,6.6298]
[1726827848909,24.153354,150.88,150.82,23.2061]
[1726827849123,6.6291,150.85,150.82,16.5758]
[1726827849503,24.153354,150.88,150.82,16.5758]
[1726827849504,12.85608284,150.88,150.82,16.5758]
[1726827849726,0.12549,150.87,150.8,6.6311]
[1726827851129,6.6298,150.84,150.8,6.6311]
[1726827851798,0.12549,150.87,150.79,16.5785]
[1726827851799,6.6292,150.85,150.81,6.6308]
[1726827851994,6.629,150.86,150.82,6.6304]
[1726827853411,6.6304,150.82,150.78,29.4167]
[1726827853619,6.6301,150.83,150.79,6.6314]
[1726827854133,0.12549,150.88,150.8,16.578]
[1726827854422,0.25098,150.88,150.8,16.578]
[1726827854910,6.6289,150.86,150.82,6.63]
[1726827857706,6.6291,150.85,150.82,6.63]
[1726827858227,6.6291,150.85,150.81,6.6307]
[1726827859723,6.6291,150.85,150.82,6.6303]
[1726827860304,6.6288,150.86,150.82,6.6303]
[1726827860901,6.6288,150.86,150.74,0.2555117]
[1726827860903,44.153354,150.84,150.74,0.2555117]
[1726827861120,6.6318,150.79,150.74,0.2555117]
[1726827861298,60.727554,150.84,150.74,6.8894117]
[1726827861502,6.6312,150.81,150.74,16.8395117]
[1726827862409,6.6313,150.8,150.74,16.8395117]
[1726827863025,60.727554,150.84,150.74,16.8395117]
[1726827863222,0.12549,150.84,150.77,13.5432414]
[1726827863412,6.6291,150.85,150.8,6.6312]
[1726827863733,6.6295,150.84,150.79,6.6316]
[1726827864943,6.63,150.83,150.79,6.6316]
[1726827865155,6.63,150.83,150.78,22.6473]
[1726827865156,6.6304,150.82,150.78,22.6473]
[1726827865344,6.6308,150.81,150.78,6.068]
[1726827865839,6.6304,150.82,150.78,6.068]
[1726827869859,6.6304,150.82,150.78,6.068]
[1726827871364,6.63,150.83,150.78,6.068]
[1726827871861,6.63,150.83,150.79,6.6317]
[1726827872050,16.82298,150.86,150.79,6.6317]
[1726827872051,26.6294,150.85,150.79,16.5789]
[1726827872229,6.6294,150.85,150.81,6.6308]
[1726827872858,6.6288,150.86,150.82,6.6303]
[1726827874060,6.6291,150.85,150.81,6.6307]
[1726827874941,6.6291,150.85,150.8,13.5432414]
[1726827874942,6.6289,150.86,150.8,13.5432414]
[1726827875153,6.6289,150.86,150.81,6.6306]
[1726827877960,6.6292,150.85,150.81,6.6306]
[1726827878837,6.6297,150.84,150.8,6.6312]
[1726827880763,6.6292,150.85,150.81,6.6308]
[1726827881464,24.027864,150.88,150.81,6.6308]
[1726827881465,6.629,150.86,150.82,6.6303]
[1726827882372,6.6284,150.87,150.81,16.5769]
[1726827882574,0.2555117,150.89,150.82,28.6118414]
[1726827882775,0.2555117,150.89,150.87,16.5701]
[1726827882953,0.2555117,150.89,150.87,23.1982]
[1726827884462,0.2555117,150.89,150.84,23.1301]
[1726827884655,6.6279,150.88,150.84,23.1301]
[1726827884972,6.6279,150.88,150.84,29.7594]
[1726827888074,6.8829117,150.89,150.85,6.629]
[1726827890481,6.6278,150.88,150.84,29.7593]
[1726827892285,0.2555117,150.89,150.85,6.629]
[1726827892286,6.8829117,150.89,150.85,6.629]
[1726827894157,0.2555117,150.89,150.83,6.6298]
[1726827894374,0.2555117,150.89,150.82,15.0686]
[1726827896484,6.6283,150.87,150.83,6.6298]
[1726827898075,0.2555117,150.89,150.82,28.6118414]
[1726827898382,0.2555117,150.89,150.86,6.6285]
[1726827898696,0.2555117,150.89,150.87,6.6282]
[1726827900459,6.628,150.88,150.85,16.5724]
[1726827901973,6.628,150.88,150.85,23.2014]
[1726827902366,6.8829117,150.89,150.85,23.2014]
[1726827903283,0.2555117,150.89,150.86,6.6286]
[1726827904586,0.2555117,150.89,150.87,6.6281]
[1726827906287,0.2555117,150.89,150.88,6.6277]
[1726827906501,0.2555117,150.89,150.88,21.8921]
[1726827907896,6.6248,150.95,150.91,6.6263]
[1726827907897,5.7456855,150.95,150.91,6.6263]
[1726827910276,16.8147117,150.98,150.89,16.5673]
[1726827910475,16.8147117,150.98,150.87,6.628]
[1726827910476,6.6267,150.91,150.87,6.628]
[1726827914889,44.153354,150.97,150.86,16.5709]
[1726827914890,6.627,150.9,150.86,23.1994]
[1726827915083,6.6274,150.89,150.86,16.5709]
[1726827916599,6.6274,150.89,150.86,23.1995]
[1726827916790,6.6274,150.89,150.86,16.5709]
[1726827917184,6.6278,150.88,150.84,16.1844]
[1726827917391,6.6278,150.88,150.84,6.6293]
[1726827917592,16.5652,150.92,150.83,16.8295117]
[1726827917593,6.6282,150.87,150.83,23.4594117]
[1726827917793,6.6277,150.88,150.84,6.6293]
[1726827919413,6.6293,150.85,150.83,0.2555117]
[1726827919605,6.6287,150.86,150.83,0.2555117]
[1726827920173,6.6283,150.87,150.83,6.8854117]
[1726827920371,20.0,150.91,150.83,0.2555117]
[1726827920610,0.12549,150.9,150.83,0.2555117]
[1726827921497,6.6273,150.89,150.85,6.6288]
[1726827921808,6.627,150.9,150.85,6.6288]
[1726827922310,6.627,150.9,150.86,6.6283]
[1726827925789,6.6265,150.91,150.87,6.6281]
[1726827926501,6.6261,150.92,150.88,6.6277]
[1726827930105,6.6257,150.93,150.88,6.6277]
[1726827931325,6.627,150.9,150.86,16.5713]
[1726827931618,6.627,150.9,150.86,23.1996]
[1726827932125,6.6265,150.91,150.87,6.6281]
[1726827932828,6.6261,150.92,150.88,6.6277]
[1726827933009,6.6261,150.92,150.87,6.628]
[1726827933516,6.6261,150.92,150.88,6.6277]
[1726827940338,6.6269,150.9,150.86,16.5713]
[1726827940542,6.6269,150.9,150.86,23.1996]
[1726827940750,6.6269,150.9,150.87,6.6281]
[1726827941036,6.6266,150.91,150.87,6.6281]
[1726827941643,6.6266,150.91,150.88,6.6277]
[1726827942934,6.626,150.92,150.88,6.6277]
[1726827952249,6.6264,150.91,150.88,6.6277]
[1726827953254,6.6264,150.91,150.87,6.628]
[1726827956063,6.6262,150.92,150.88,6.6276]
[1726827960075,26.6254,150.94,150.88,16.5692]
[1726827960368,6.6254,150.94,150.88,16.5692]
[1726827961153,6.6254,150.94,150.9,6.6267]
[1726827961571,6.6248,150.95,150.91,6.6263]
[1726827961749,6.6248,150.95,150.91,7.95146509]
[1726827962274,6.6248,150.95,150.91,6.6263]
[1726827962653,6.6243,150.96,150.92,6.626]
[1726827962863,6.624,150.97,150.93,7.95047236]
[1726827963863,6.624,150.97,150.93,6.6255]
[1726827964063,6.8789117,150.98,150.94,6.6247]
[1726827964375,0.2555117,150.98,150.95,6.6246]
[1726827965257,0.2555117,150.98,150.94,16.5627]
[1726827965258,0.2555117,150.98,150.96,6.6242]
[1726827966291,6.8789117,150.98,150.94,23.1877]
[1726827968177,6.8788117,150.98,150.94,23.1877]
[1726827970464,6.6241,150.97,150.93,6.6255]
[1726827970986,6.6243,150.96,150.92,6.6258]
[1726827971376,6.6251,150.94,150.91,32.2558]
[1726827971893,6.6251,150.94,150.91,16.5652]
[1726827974063,6.6251,150.94,150.9,6.6265]
[1726827974271,6.6256,150.93,150.89,6.6272]
[1726827976574,0.12549,150.95,150.88,16.5687]
[1726827976880,6.6261,150.92,150.88,23.1964]
[1726827984572,6.6256,150.93,150.89,6.6272]
[1726827984771,20.0,150.93,150.89,6.6272]
[1726827985567,6.6256,150.93,150.89,6.6272]
[1726827986598,6.627,150.9,150.87,15.3832]
[1726827986800,6.627,150.9,150.86,6.6286]
[1726827987796,6.6266,150.91,150.87,6.6282]
[1726827988297,6.6261,150.92,150.88,6.6276]
[1726827990309,6.6257,150.93,150.89,6.6273]
[1726827990791,6.6252,150.94,150.9,6.6268]
[1726827992775,6.6247,150.95,150.91,6.6261]
[1726827992976,6.6244,150.96,150.92,6.626]
[1726827997109,0.2555117,150.98,150.91,16.5657]
[1726827997110,0.37647,150.97,150.91,16.5657]
[1726827997406,6.6255,150.93,150.9,6.6265]
[1726827997785,6.6252,150.94,150.9,6.6265]
[1726828002510,6.6248,150.95,150.91,6.6264]
[1726828003586,6.6251,150.94,150.9,23.1937]
[1726828004707,23.776884,150.94,150.88,16.0646]
[1726828004909,20.37647,150.91,150.85,6.2704]
[1726828005089,6.6291,150.85,150.83,0.2555117]
[1726828006307,6.6287,150.86,150.83,0.2555117]
[1726828006681,6.6291,150.85,150.83,0.2555117]
[1726828007604,6.6295,150.84,150.83,0.2555117]
[1726828008504,6.75499,150.84,150.83,0.2555117]
[1726828010214,6.6291,150.85,150.83,0.2555117]
[1726828010589,6.6289,150.86,150.83,0.2555117]
[1726828011906,50.782854,150.84,150.83,0.2555117]
[1726828018865,26.88048,150.84,150.83,0.2555117]
[1726828021573,50.782854,150.84,150.83,0.2555117]
[1726828023463,27.00597,150.84,150.83,0.2555117]
[1726828032980,20.12549,150.83,150.76,16.2929]
[1726828033856,0.12549,150.83,150.76,16.2929]
[1726828034261,6.75579,150.83,150.78,6.6318]
[1726828034458,6.75579,150.83,150.79,6.6316]
[1726828034681,6.6291,150.85,150.81,6.6308]
[1726828034984,6.6289,150.86,150.81,6.6308]
[1726828035780,6.6291,150.85,150.81,6.6308]
[1726828036287,24.027864,150.87,150.79,22.9653]
[1726828036491,6.6295,150.85,150.79,22.9653]
[1726828037385,6.6295,150.85,150.81,6.6308]
[1726828039207,20.12549,150.86,150.83,6.6297]
[1726828039370,20.0,150.88,150.84,6.6293]
[1726828039563,20.0,150.88,150.85,16.572]
[1726828039564,26.6278,150.88,150.85,16.572]
[1726828041700,0.2555117,150.89,150.87,6.6281]
[1726828041871,0.2555117,150.89,150.88,7.95310767]
[1726828042194,0.2555117,150.89,150.88,6.6277]
[1726828050090,0.2555117,150.89,150.88,42.4301414]
[1726828052991,0.2555117,150.94,150.88,86.5834954]
[1726828053202,0.2555117,150.94,150.93,52.1252414]
[1726828054010,0.2555117,150.94,150.93,58.4450414]
[1726828066125,0.2555117,150.94,150.9,16.5664]
[1726828066325,6.8810117,150.94,150.9,23.1931]
[1726828066505,6.6256,150.93,150.89,22.66719]
[1726828066816,6.6263,150.92,150.89,0.12549]
[1726828067027,6.6256,150.93,150.89,6.6273]
[1726828068122,6.626,150.92,150.88,6.6277]
[1726828068425,6.626,150.92,150.87,16.5696]
[1726828069325,6.6256,150.93,150.88,6.6274]
[1726828069698,6.6256,150.93,150.89,6.6271]
[1726828070805,6.8808117,150.94,150.9,6.6268]
[1726828076527,0.2555117,150.94,150.92,6.6259]
[1726828076705,0.2555117,150.94,150.93,6.6255]
[1726828082031,0.2555117,150.94,150.92,6.6258]
[1726828082406,0.2555117,150.94,150.88,16.5686]
[1726828082603,0.2555117,150.94,150.89,6.627]
[1726828082604,6.6256,150.93,150.89,6.627]
[1726828082806,6.8808117,150.94,150.9,6.6268]
[1726828084245,0.2555117,150.94,150.93,6.6255]
[1726828099941,0.2555117,150.94,150.89,22.57]
[1726828100241,6.8807117,150.94,150.9,6.6265]
[1726828100441,0.2555117,150.94,150.91,6.6264]
[1726828103249,6.6257,150.93,150.89,23.1943]
[1726828104231,6.6257,150.93,150.89,16.5673]
[1726828106252,6.626,150.92,150.89,16.5673]
[1726828106851,6.6265,150.91,150.87,6.628]
[1726828107342,6.627,150.9,150.86,23.1994]
[1726828108852,6.6265,150.91,150.87,6.6281]
[1726828109424,6.6261,150.92,150.88,6.6277]
[1726828109850,6.6261,150.92,150.89,6.6273]
[1726828110423,6.75119,150.93,150.89,6.6273]
[1726828110627,26.75119,150.93,150.89,6.6273]
[1726828111235,6.626,150.92,150.88,23.1967]
[1726828112664,26.75119,150.93,150.89,6.6272]
[1726828113741,6.626,150.92,150.89,6.6272]
[1726828114442,6.626,150.92,150.88,23.1967]
[1726828114649,6.6273,150.9,150.85,16.5718]
[1726828114842,6.6265,150.91,150.87,6.6278]
[1726828115044,6.6265,150.91,150.87,16.5704]
[1726828115352,0.2555117,150.94,150.9,16.5669]
[1726828116057,6.8806117,150.94,150.9,16.5669]
[1726828116762,6.6256,150.93,150.9,16.5669]
[1726828116952,6.626,150.92,150.87,32.9179]
[1726828117161,6.626,150.92,150.88,6.6274]
[1726828117667,6.6265,150.91,150.87,22.9761]
[1726828117843,6.6265,150.91,150.87,6.6278]
[1726828118032,6.6269,150.9,150.86,23.1998]
[1726828119652,6.6265,150.91,150.87,6.6279]
[1726828119954,6.6261,150.92,150.88,6.6275]
[1726828120176,20.0,150.93,150.9,6.6266]
[1726828127160,6.8808117,150.94,150.9,6.6266]
[1726828129939,6.8808117,150.94,150.9,6.6266]
[1726828130564,0.2555117,150.94,150.91,6.6264]
[1726828137575,0.2555117,150.94,150.9,16.567]
[1726828137747,6.6258,150.93,150.9,16.567]
[1726828138458,6.6258,150.93,150.89,6.6272]
[1726828138656,0.25098,150.93,150.83,15.7964]
[1726828138845,6.75199,150.91,150.87,6.6281]
[1726828141072,0.12549,150.92,150.86,16.5713]
[1726828141073,0.12549,150.9,150.86,16.5713]
[1726828141671,6.6278,150.88,150.84,6.6294]
[1726828142057,6.6283,150.87,150.83,23.2042]
[1726828143971,6.6279,150.88,150.83,23.2042]
[1726828146056,6.6283,150.87,150.83,23.2042]
[1726828147568,6.6278,150.88,150.84,6.6294]
[1726828147773,6.75299,150.89,150.84,6.6294]
[1726828150084,6.6279,150.88,150.84,6.6294]
[1726828151982,0.12549,150.89,150.83,16.5744]
[1726828152192,6.6282,150.87,150.83,23.2042]
[1726828152682,6.6287,150.86,150.83,16.5744]
[1726828152873,6.6296,150.84,150.8,23.2087]
[1726828153082,6.6292,150.85,150.81,6.6308]
[1726828153767,6.6295,150.84,150.81,6.6308]
[1726828153955,6.6295,150.84,150.8,23.2086]
[1726828156666,6.6292,150.85,150.81,6.6308]
[1726828156878,6.6295,150.84,150.81,6.6308]
[1726828157769,6.75469,150.85,150.81,6.6308]
[1726828161375,6.75469,150.85,150.81,6.6308]
[1726828167594,6.6295,150.84,150.8,23.2086]
[1726828170694,0.12549,150.85,150.79,16.1506]
[1726828170903,6.6304,150.82,150.79,16.1506]
[1726828171107,6.6309,150.81,150.78,0.2555117]
[1726828172101,6.6305,150.82,150.78,6.8876117]
[1726828172302,0.12549,150.81,150.78,6.8876117]
[1726828175882,6.6301,150.83,150.79,6.6317]
[1726828176077,6.6301,150.83,150.8,6.6312]
[1726828176788,6.75509,150.84,150.8,6.6312]
[1726828177496,0.12549,150.83,150.8,6.6312]
[1726828178799,6.63,150.83,150.8,6.6312]
[1726828179010,6.6296,150.84,150.8,6.6312]
[1726828179183,36.5701,150.88,150.82,6.6303]
[1726828179387,6.6289,150.86,150.82,6.6303]
[1726828185890,0.12549,150.87,150.83,16.5748]
[1726828186088,26.6278,150.88,150.84,6.6293]
[1726828186493,6.6273,150.89,150.85,6.629]
[1726828187721,6.627,150.9,150.86,6.6286]
[1726828187915,16.8192117,150.94,150.86,6.6286]
[1726828187916,0.2555117,150.94,150.87,17.89559468]
[1726828188712,0.2555117,150.94,150.87,16.57]
[1726828188917,0.2555117,150.94,150.87,17.89545166]
[1726828189408,6.6256,150.93,150.89,6.6272]
[1726828190599,6.6256,150.93,150.87,16.57]
[1726828191619,6.6256,150.93,150.89,6.6272]
[1726828191798,0.37647,150.93,150.87,16.57]
[1726828192117,24.153354,150.93,150.87,16.57]
[1726828192293,6.6264,150.91,150.87,23.1978]
[1726828193194,6.6261,150.92,150.87,23.1978]
[1726828193395,0.12549,150.91,150.87,23.1978]
[1726828194001,6.6261,150.92,150.88,6.6275]
[1726828194812,6.75209,150.91,150.87,16.57]
[1726828196712,6.75209,150.91,150.87,23.1981]
[1726828198194,6.75209,150.91,150.87,16.57]
[1726828198610,6.6269,150.9,150.86,22.7161]
[1726828202403,6.6266,150.91,150.87,6.6282]
[1726828202742,26.75149,150.92,150.88,6.6276]
[1726828202897,26.626,150.92,150.88,6.6276]
[1726828203094,6.6257,150.93,150.89,6.6273]
[1726828203325,20.0,150.92,150.89,6.6273]
[1726828203524,0.2555117,150.94,150.88,16.5691]
[1726828203900,0.2555117,150.94,150.89,6.6272]
[1726828203901,6.8809117,150.94,150.89,6.6272]
[1726828204120,6.6256,150.93,150.89,6.6272]
[1726828205390,6.8807117,150.94,150.9,6.6268]
[1726828205811,6.8807117,150.94,150.91,6.6263]
[1726828205812,0.2555117,150.94,150.91,6.6263]
[1726828208411,6.8806117,150.94,150.9,23.1937]
[1726828209002,6.8806117,150.94,150.87,16.5697]
[1726828209003,20.25098,150.93,150.87,16.5697]
[1726828210020,6.6263,150.92,150.88,6.6277]